[Event "DMP-III LIGA Senior PK 2020"]
[Site "Bystre"]
[Date "2020.07.12"]
[Round "8.27"]
[White "Futyma, Dawid"]
[Black "Kasperek, Rafal"]
[Result "0-1"]
[ECO "E38"]
[WhiteElo "1278"]
[BlackElo "1982"]
[Annotator "RC"]
[PlyCount "52"]
[EventDate "2020.07.05"]
[EventType "team-tourn"]
[EventCountry "POL"]
[SourceTitle "playchess.com"]
[Source "ChessBase"]
[SourceQuality "1"]
[TimeControl "5400+30"]

1. d4 {[%emt 0:00:00]} Nf6 {[%emt 0:00:00]} 2. c4 {[%emt 0:00:00]} e6 {[%emt 0:00:00]} 3. Nc3 {[%emt 0:00:10]} Bb4 {[%emt 0:00:01]} 4. Qc2 {[%emt 0:00:15]} c5 {[%emt 0:00:57]} 5. e3 {[%emt 0:00:45]} O-O {[%emt 0:01:20]} 6. Nf3 {[%emt 0:00:26]} d5 {[%emt 0:00:52]} 7. Bd2 {[%emt 0:01:03]} cxd4 {[%emt 0:00:53]} 8. exd4 {[%emt 0:00:48]} Nc6 {[%emt 0:00:11]} 9. cxd5 {[%emt 0:00:24]} Nxd5 {[%emt 0:03:29]} 10. Bd3 {[%emt 0:01:21]} Nf6 {[%emt 0:02:04]} 11. Ne2 {[%emt 0:02:33]} Bxd2+ {[%emt 0:00:48]} 12. Qxd2 {[%emt 0:00:24]} b6 {[%emt 0:02:31]} 13. O-O {[%emt 0:00:52]} Bb7 {[%emt 0:01:02]} 14. Nc3 {[%emt 0:00:39]} Nb4 {[%emt 0:08:14]} 15. Be2 {[%emt 0:00:55]} Nbd5 {[%emt 0:00:58]} 16. Nxd5 {[%emt 0:00:59]} Qxd5 {[%emt 0:01:45]} 17. Qg5 {[%emt 0:01:17]} Rac8 {[%emt 0:04:28]} 18. Qxd5 {[%emt 0:00:26]} Nxd5 {[%emt 0:02:07]} 19. Rac1 {[%emt 0:00:18]} Nf4 {[%emt 0:00:53]} 20. Bb5 {[%emt 0:01:24]} a6 {[%emt 0:00:58]} 21. Rxc8 {[%emt 0:01:14]} Rxc8 {[%emt 0:00:11]} 22. Ba4 {[%emt 0:00:23]} Bxf3 {[%emt 0:02:25]} 23. gxf3 {[%emt 0:00:37]} Rc4 {[%emt 0:00:09]} 24. Bb3 {[%emt 0:02:54]} Rxd4 {[%emt 0:00:23]} 25. Kh1 {[%emt 0:00:16]} Kf8 {[%emt 0:01:08]} 26. Rc1 {[%emt 0:00:29]} Rd2 {[%emt 0:00:49]} 0-1

[Event "DMP-III LIGA Senior PK 2020"]
[Site "Bystre"]
[Date "2020.07.12"]
[Round "8.28"]
[White "Mikula, Michal"]
[Black "Szaro, Mariusz"]
[Result "1-0"]
[ECO "C00"]
[WhiteElo "1858"]
[BlackElo "1559"]
[Annotator "NA RC"]
[PlyCount "43"]
[EventDate "2020.07.05"]
[EventType "team-tourn"]
[EventCountry "POL"]
[SourceTitle "playchess.com"]
[Source "ChessBase"]
[SourceQuality "1"]
[TimeControl "5400+30"]

1. e4 {[%emt 0:00:00]} e6 {[%emt 0:00:20]} 2. Nf3 {[%emt 0:01:16]} d5 {[%emt 0:00:10]} 3. e5 {[%emt 0:00:16]} c5 {[%emt 0:00:29]} 4. b4 {[%emt 0:00:08]} cxb4 {[%emt 0:00:48]} 5. a3 {[%emt 0:00:47]} Nc6 {[%emt 0:03:31]} 6. axb4 {[%emt 0:00:41]} Qc7 {[%emt 0:00:29]} 7. d4 {[%emt 0:03:37]} Bxb4+ {[%emt 0:21:45]} 8. c3 {[%emt 0:02:34]} Be7 {[%emt 0:02:06]} 9. Bd3 {[%emt 0:00:43]} Nh6 {[%emt 0:00:37]} 10. h4 {[%emt 0:14:43]} f6 {[%emt 0:12:27]} 11. exf6 {[%emt 0:20:34]} Bxf6 {[%emt 0:00:41]} 12. Na3 {[%emt 0:03:41]} O-O {[%emt 0:05:12]} 13. Ng5 {[%emt 0:05:58]} Nf5 {[%emt 0:01:24]} 14. Nb5 {[%emt 0:04:37]} Qd7 {[%emt 0:03:57]} 15. Ba3 {[%emt 0:04:24]} Re8 {[%emt 0:03:19]} 16. g4 {[%emt 0:04:27]} a6 {[%emt 0:02:42]} 17. Bc1 {[%emt 0:04:49]} axb5 {[%emt 0:05:12]} 18. Rxa8 {[%emt 0:00:25]} Nfxd4 {[%emt 0:00:01]} 19. Bxh7+ {[%emt 0:04:46]} Kh8 {[%emt 0:00:41]} 20. cxd4 {[%emt 0:00:36]} Nxd4 {[%emt 0:01:37]} 21. Qd3 {[%emt 0:01:49]} Qc6 {[%emt 0:07:54]} 22. Nf7# 1-0

[Event "DMP-III LIGA Senior PK 2020"]
[Site "Bystre"]
[Date "2020.07.12"]
[Round "8.29"]
[White "Dziura, Wiktor"]
[Black "Sygulski, Piotr"]
[Result "0-1"]
[ECO "A00"]
[WhiteElo "1353"]
[BlackElo "1652"]
[Annotator "NA RC"]
[PlyCount "52"]
[EventDate "2020.07.05"]
[EventType "team-tourn"]
[EventCountry "POL"]
[SourceTitle "playchess.com"]
[Source "ChessBase"]
[SourceQuality "1"]
[TimeControl "5400+30"]

1. g3 {[%emt 0:00:00]} d5 {[%emt 0:00:00]} 2. Bg2 {[%emt 0:00:00]} e5 {[%emt 0:00:00]} 3. c4 {[%emt 0:00:00]} c6 {[%emt 0:00:17]} 4. cxd5 {[%emt 0:00:00]} cxd5 {[%emt 0:00:02]} 5. d3 {[%emt 0:00:09]} Nf6 {[%emt 0:00:52]} 6. Nf3 {[%emt 0:00:13]} Nc6 {[%emt 0:00:07]} 7. O-O {[%emt 0:00:19]} Bd6 {[%emt 0:00:30]} 8. Nc3 {[%emt 0:01:40]} h6 {[%emt 0:00:39]} 9. Re1 {[%emt 0:02:05]} O-O {[%emt 0:01:00]} 10. Nd2 {[%emt 0:05:33]} Bc7 {[%emt 0:00:40]} 11. a3 {[%emt 0:06:28]} a6 {[%emt 0:02:13]} 12. e4 {[%emt 0:01:34]} d4 {[%emt 0:01:05]} 13. Nd5 {[%emt 0:04:32]} Be6 {[%emt 0:01:52]} 14. Nxc7 {[%emt 0:02:29]} Qxc7 {[%emt 0:00:12]} 15. Nb3 {[%emt 0:01:51]} Nd7 {[%emt 0:02:12]} 16. Rf1 {[%emt 0:01:51]} Rfc8 {[%emt 0:02:16]} 17. f4 {[%emt 0:04:50]} f6 {[%emt 0:00:28]} 18. fxe5 {[%emt 0:01:10]} Ndxe5 {[%emt 0:03:08]} 19. Nc5 {[%emt 0:02:49]} Bg4 {[%emt 0:01:01]} 20. Qb3+ {[%emt 0:08:27]} Kh7 {[%emt 0:00:24]} 21. Bd2 {[%emt 0:05:36]} b6 {[%emt 0:05:38]} 22. h3 {[%emt 0:02:11]} Nf3+ {[%emt 0:03:59]} 23. Bxf3 {[%emt 0:03:20]} Qxg3+ {[%emt 0:00:08]} 24. Bg2 {[%emt 0:01:02]} Bxh3 {[%emt 0:00:05]} 25. Rf2 {[%emt 0:00:46]} Ne5 {[%emt 0:00:19]} 26. Be1 {[%emt 0:05:57]} Ng4 0-1

[Event "DMP-III LIGA Senior PK 2020"]
[Site "Bystre"]
[Date "2020.07.12"]
[Round "8.30"]
[White "Zgoda, Aleksandra"]
[Black "Kruczek, Aleksandra"]
[Result "1-0"]
[ECO "C78"]
[WhiteElo "1203"]
[BlackElo "1038"]
[Annotator "NA RC"]
[PlyCount "79"]
[EventDate "2020.07.05"]
[EventType "team-tourn"]
[EventCountry "POL"]
[SourceTitle "playchess.com"]
[Source "ChessBase"]
[SourceQuality "1"]
[TimeControl "5400+30"]

1. e4 {[%emt 0:00:00]} e5 {[%emt 0:00:00]} 2. Nf3 {[%emt 0:00:00]} Nc6 {[%emt 0:00:00]} 3. Bb5 {[%emt 0:00:04]} a6 {[%emt 0:00:08]} 4. Ba4 {[%emt 0:00:18]} Nf6 {[%emt 0:01:02]} 5. O-O {[%emt 0:01:28]} b5 {[%emt 0:05:02]} 6. Bb3 {[%emt 0:02:27]} a5 {[%emt 0:06:54]} 7. c3 {[%emt 0:03:50]} Bb7 {[%emt 0:02:19]} 8. d4 {[%emt 0:03:04]} exd4 {[%emt 0:07:25]} 9. cxd4 {[%emt 0:03:25]} a4 {[%emt 0:06:55]} 10. Bc2 {[%emt 0:03:58]} Nb4 {[%emt 0:03:39]} 11. Re1 {[%emt 0:03:55]} Be7 {[%emt 0:03:34]} 12. Nc3 {[%emt 0:04:42]} c6 {[%emt 0:02:30]} 13. a3 {[%emt 0:03:08]} Nxc2 {[%emt 0:03:04]} 14. Qxc2 {[%emt 0:01:39]} Rc8 {[%emt 0:02:37]} 15. Qd3 {[%emt 0:05:32]} O-O {[%emt 0:02:57]} 16. Be3 {[%emt 0:06:33]} Ng4 {[%emt 0:17:28]} 17. Nd2 {[%emt 0:07:45]} Bd6 {[%emt 0:09:57]} 18. h3 {[%emt 0:03:57]} Nxe3 {[%emt 0:05:12]} 19. Rxe3 {[%emt 0:02:04]} Qh4 {[%emt 0:02:07]} 20. e5 {[%emt 0:04:59]} Be7 {[%emt 0:01:48]} 21. Rg3 {[%emt 0:02:46]} f6 {[%emt 0:04:16]} 22. Nf3 {[%emt 0:05:16]} Qh5 {[%emt 0:01:22]} 23. Ne4 {[%emt 0:02:00]} h6 {[%emt 0:02:38]} 24. Re1 {[%emt 0:04:31]} f5 {[%emt 0:01:55]} 25. Nc5 {[%emt 0:03:15]} Rc7 {[%emt 0:01:54]} 26. Nxb7 {[%emt 0:03:38]} Rxb7 {[%emt 0:00:05]} 27. d5 {[%emt 0:00:22]} f4 {[%emt 0:01:07]} 28. Rg4 {[%emt 0:00:42]} c5 {[%emt 0:00:29]} 29. d6 {[%emt 0:00:45]} Bxd6 {[%emt 0:00:53]} 30. Qd5+ {[%emt 0:01:21]} Kh8 {[%emt 0:00:22]} 31. Qxb7 {[%emt 0:00:33]} Be7 {[%emt 0:01:00]} 32. Qxd7 {[%emt 0:01:06]} Rf7 {[%emt 0:00:30]} 33. e6 {[%emt 0:01:24]} Rf8 {[%emt 0:00:58]} 34. Qxe7 {[%emt 0:00:21]} Rg8 {[%emt 0:00:34]} 35. Qf7 {[%emt 0:01:01]} Qxf7 {[%emt 0:00:44]} 36. exf7 {[%emt 0:00:08]} Rf8 {[%emt 0:00:05]} 37. Re8 {[%emt 0:00:24]} Rxe8 {[%emt 0:00:06]} 38. fxe8=Q+ {[%emt 0:00:10]} Kh7 {[%emt 0:00:11]} 39. Qf7 {[%emt 0:00:14]} c4 {[%emt 0:00:18]} 40. Qxg7# 1-0

[Event "DMP-III LIGA Senior PK 2020"]
[Site "Bystre"]
[Date "2020.07.12"]
[Round "9.1"]
[White "Zgoda, Damian"]
[Black "Stefanski, Robert"]
[Result "1/2-1/2"]
[ECO "E06"]
[WhiteElo "1672"]
[BlackElo "1649"]
[Annotator "NA"]
[PlyCount "42"]
[EventDate "2020.07.05"]
[EventType "team-tourn"]
[EventCountry "POL"]
[SourceTitle "playchess.com"]
[Source "ChessBase"]
[SourceQuality "1"]
[TimeControl "5400+30"]

1. d4 {[%emt 0:00:00]} d5 {[%emt 0:00:00]} 2. Nf3 {[%emt 0:00:00]} e6 {[%emt 0:00:00]} 3. c4 {[%emt 0:01:04]} Nf6 {[%emt 0:00:27]} 4. g3 {[%emt 0:01:21]} Be7 {[%emt 0:00:34]} 5. Bg2 {[%emt 0:00:45]} O-O {[%emt 0:00:14]} 6. O-O {[%emt 0:00:37]} c5 {[%emt 0:00:38]} 7. cxd5 {[%emt 0:04:18]} exd5 {[%emt 0:00:41]} 8. dxc5 {[%emt 0:04:01]} Bxc5 {[%emt 0:00:08]} 9. Qc2 {[%emt 0:01:17]} Qb6 {[%emt 0:05:01]} 10. Nc3 {[%emt 0:02:11]} Be7 {[%emt 0:01:58]} 11. Be3 {[%emt 0:04:43]} Qa5 {[%emt 0:07:36]} 12. a3 {[%emt 0:05:06]} Nc6 {[%emt 0:07:37]} 13. b4 {[%emt 0:09:22]} Qd8 {[%emt 0:00:22]} 14. Na4 {[%emt 0:03:10]} Bg4 {[%emt 0:02:59]} 15. Nd4 {[%emt 0:04:12]} Nxd4 {[%emt 0:01:22]} 16. Bxd4 {[%emt 0:03:25]} Rc8 {[%emt 0:02:49]} 17. Qb2 {[%emt 0:02:41]} b6 {[%emt 0:00:49]} 18. Rac1 {[%emt 0:03:01]} Qd7 {[%emt 0:03:08]} 19. Nc3 {[%emt 0:07:14]} Rfd8 {[%emt 0:00:28]} 20. e3 {[%emt 0:01:15]} Bf5 {[%emt 0:00:53]} 21. Rfd1 {[%emt 0:01:18]} Ne4 {[%emt 0:05:10]} 1/2-1/2

[Event "DMP-III LIGA Senior PK 2020"]
[Site "Bystre"]
[Date "2020.07.12"]
[Round "9.2"]
[White "Socha, Kamil"]
[Black "Smusz, Kamil"]
[Result "1/2-1/2"]
[ECO "C90"]
[WhiteElo "1817"]
[BlackElo "1922"]
[Annotator "ChessBase"]
[PlyCount "40"]
[EventDate "2020.07.05"]
[EventType "team-tourn"]
[EventCountry "POL"]
[SourceTitle "playchess.com"]
[Source "ChessBase"]
[SourceQuality "1"]
[TimeControl "5400+30"]

1. e4 {[%emt 0:00:00]} e5 {[%emt 0:00:00]} 2. Nf3 {[%emt 0:00:00]} Nc6 {[%emt 0:00:00]} 3. Bb5 {[%emt 0:00:19]} a6 {[%emt 0:00:32]} 4. Ba4 {[%emt 0:00:25]} Nf6 {[%emt 0:00:11]} 5. O-O {[%emt 0:00:23]} b5 {[%emt 0:00:27]} 6. Bb3 {[%emt 0:00:09]} Be7 {[%emt 0:00:05]} 7. d3 {[%emt 0:00:27]} O-O {[%emt 0:01:33]} 8. c3 {[%emt 0:00:25]} d6 {[%emt 0:01:01]} 9. Re1 {[%emt 0:00:40]} Na5 {[%emt 0:02:47]} 10. Bc2 {[%emt 0:03:28]} c5 {[%emt 0:01:20]} 11. Nbd2 {[%emt 0:01:35]} Nc6 {[%emt 0:02:44]} 12. Nf1 {[%emt 0:00:34]} h6 {[%emt 0:06:21]} 13. Ng3 {[%emt 0:01:18]} Nh7 {[%emt 0:05:43]} 14. d4 {[%emt 0:02:04]} cxd4 {[%emt 0:10:17]} 15. cxd4 {[%emt 0:03:46]} Ng5 {[%emt 0:04:34]} 16. Nxg5 {[%emt 0:03:48]} Bxg5 {[%emt 0:00:39]} 17. dxe5 {[%emt 0:00:56]} dxe5 {[%emt 0:00:49]} 18. Bxg5 {[%emt 0:01:15]} hxg5 {[%emt 0:02:09]} 19. Bb3 {[%emt 0:00:11]} Qxd1 {[%emt 0:29:20]} 20. Raxd1 {[%emt 0:18:13]} Nd4 {[%emt 0:02:10]} 1/2-1/2

[Event "DMP-III LIGA Senior PK 2020"]
[Site "Bystre"]
[Date "2020.07.12"]
[Round "9.4"]
[White "Korys, Dawid"]
[Black "Mikula, Michal"]
[Result "0-1"]
[ECO "E67"]
[WhiteElo "1343"]
[BlackElo "1858"]
[Annotator "NA"]
[PlyCount "68"]
[EventDate "2020.07.05"]
[EventType "team-tourn"]
[EventCountry "POL"]
[SourceTitle "playchess.com"]
[Source "ChessBase"]
[SourceQuality "1"]
[TimeControl "5400+30"]

1. d4 {[%emt 0:00:00]} Nf6 {[%emt 0:00:00]} 2. c4 {[%emt 0:00:10]} g6 {[%emt 0:00:25]} 3. Nf3 {[%emt 0:00:27]} Bg7 {[%emt 0:00:10]} 4. Nc3 {[%emt 0:00:18]} O-O {[%emt 0:00:11]} 5. g3 {[%emt 0:00:12]} d6 {[%emt 0:01:38]} 6. Bg2 {[%emt 0:00:10]} Nbd7 {[%emt 0:01:10]} 7. O-O {[%emt 0:00:36]} c5 {[%emt 0:02:02]} 8. e4 {[%emt 0:06:02]} cxd4 {[%emt 0:06:08]} 9. Nxd4 {[%emt 0:00:16]} Nc5 {[%emt 0:00:57]} 10. Nb3 {[%emt 0:03:40]} Nxb3 {[%emt 0:05:45]} 11. Qxb3 {[%emt 0:04:38]} Nd7 {[%emt 0:04:58]} 12. Be3 {[%emt 0:02:14]} Ne5 {[%emt 0:00:30]} 13. Bd4 {[%emt 0:02:11]} Nf3+ {[%emt 0:02:10]} 14. Bxf3 {[%emt 0:01:36]} Bxd4 {[%emt 0:00:08]} 15. Rad1 {[%emt 0:02:03]} Bg7 {[%emt 0:02:27]} 16. Qc2 {[%emt 0:17:36]} Bh3 {[%emt 0:07:21]} 17. Bg2 {[%emt 0:00:23]} Bg4 {[%emt 0:00:05]} 18. Rd3 {[%emt 0:01:20]} Rc8 {[%emt 0:00:38]} 19. Nd5 {[%emt 0:04:58]} b5 {[%emt 0:06:53]} 20. Ne3 {[%emt 0:02:12]} bxc4 {[%emt 0:00:22]} 21. Nxc4 {[%emt 0:00:30]} Rc5 {[%emt 0:06:50]} 22. b3 {[%emt 0:03:08]} f5 {[%emt 0:02:49]} 23. Qd2 {[%emt 0:02:57]} Qc8 {[%emt 0:10:21]} 24. Rd5 {[%emt 0:13:30]} f4 {[%emt 0:05:25]} 25. f3 {[%emt 0:01:37]} Be6 {[%emt 0:02:58]} 26. Rxc5 {[%emt 0:02:06]} Qxc5+ {[%emt 0:00:06]} 27. Kh1 {[%emt 0:01:09]} fxg3 {[%emt 0:00:37]} 28. hxg3 {[%emt 0:01:56]} Bd4 {[%emt 0:03:13]} 29. Qa5 {[%emt 0:07:58]} Qxa5 {[%emt 0:04:57]} 30. Nxa5 {[%emt 0:00:06]} Rc8 {[%emt 0:00:03]} 31. Rd1 {[%emt 0:04:27]} Bf2 {[%emt 0:00:13]} 32. g4 {[%emt 0:06:22]} Rc2 {[%emt 0:00:20]} 33. a4 {[%emt 0:02:49]} h5 {[%emt 0:00:14]} 34. gxh5 {[%emt 0:00:48]} Rc5 {[%emt 0:00:10]} 0-1

[Event "DMP-III LIGA Senior PK 2020"]
[Site "Bystre"]
[Date "2020.07.12"]
[Round "9.5"]
[White "Sygulski, Piotr"]
[Black "Medrygal, Rafal"]
[Result "0-1"]
[ECO "C64"]
[WhiteElo "1652"]
[BlackElo "1258"]
[Annotator "NA"]
[PlyCount "65"]
[EventDate "2020.07.05"]
[EventType "team-tourn"]
[EventCountry "POL"]
[SourceTitle "playchess.com"]
[Source "ChessBase"]
[SourceQuality "1"]
[TimeControl "5400+30"]

1. e4 {[%emt 0:00:00]} e5 {[%emt 0:00:00]} 2. Nf3 {[%emt 0:00:00]} Nc6 {[%emt 0:00:00]} 3. Bb5 {[%emt 0:00:00]} Bc5 {[%emt 0:00:22]} 4. O-O {[%emt 0:00:47]} d6 {[%emt 0:00:32]} 5. d4 {[%emt 0:00:16]} exd4 {[%emt 0:00:38]} 6. Nxd4 {[%emt 0:00:26]} Bd7 {[%emt 0:00:38]} 7. Nxc6 {[%emt 0:00:26]} Bxc6 {[%emt 0:00:35]} 8. Bxc6+ {[%emt 0:00:12]} bxc6 {[%emt 0:00:09]} 9. Nc3 {[%emt 0:00:27]} Ne7 {[%emt 0:02:10]} 10. Na4 {[%emt 0:00:59]} Bb6 {[%emt 0:00:22]} 11. Nxb6 {[%emt 0:00:24]} axb6 {[%emt 0:00:26]} 12. b3 {[%emt 0:01:01]} Ng6 {[%emt 0:04:40]} 13. Bb2 {[%emt 0:00:32]} Rg8 {[%emt 0:04:43]} 14. Re1 {[%emt 0:01:46]} Qg5 {[%emt 0:02:20]} 15. e5 {[%emt 0:03:42]} O-O-O {[%emt 0:05:08]} 16. Qf3 {[%emt 0:01:24]} Kb7 {[%emt 0:03:25]} 17. Bc1 {[%emt 0:02:13]} Qe7 {[%emt 0:01:11]} 18. Bb2 {[%emt 0:01:00]} dxe5 {[%emt 0:01:35]} 19. a4 {[%emt 0:01:34]} Ra8 {[%emt 0:07:40]} 20. c4 {[%emt 0:02:21]} f6 {[%emt 0:03:40]} 21. Rec1 {[%emt 0:00:49]} Rgd8 {[%emt 0:01:37]} 22. c5 {[%emt 0:00:48]} e4 {[%emt 0:03:00]} 23. Qc3 {[%emt 0:05:05]} Rd3 {[%emt 0:04:01]} 24. Qc4 {[%emt 0:02:05]} Qxc5 {[%emt 0:01:43]} 25. Qf7 {[%emt 0:04:13]} Qe7 {[%emt 0:01:29]} 26. Qc4 {[%emt 0:00:20]} Qd6 {[%emt 0:02:19]} 27. Qxe4 {[%emt 0:00:45]} Rxb3 {[%emt 0:01:03]} 28. Qc2 {[%emt 0:02:18]} Rd3 {[%emt 0:01:52]} 29. Bc3 {[%emt 0:02:45]} Nf4 {[%emt 0:02:53]} 30. Bb4 {[%emt 0:03:09]} c5 {[%emt 0:01:15]} 31. Be1 {[%emt 0:03:10]} Qd5 {[%emt 0:03:43]} 32. f3 {[%emt 0:00:11]} Re8 {[%emt 0:01:37]} 33. Qa2 0-1

[Event "DMP-III LIGA Senior PK 2020"]
[Site "Bystre"]
[Date "2020.07.12"]
[Round "9.6"]
[White "Trybowska, Anna"]
[Black "Zgoda, Aleksandra"]
[Result "1/2-1/2"]
[ECO "B22"]
[WhiteElo "1583"]
[BlackElo "1203"]
[Annotator "NA RC"]
[PlyCount "100"]
[EventDate "2020.07.05"]
[EventType "team-tourn"]
[EventCountry "POL"]
[SourceTitle "playchess.com"]
[Source "ChessBase"]
[SourceQuality "1"]
[TimeControl "5400+30"]

1. e4 {[%emt 0:00:00]} c5 {[%emt 0:00:00]} 2. c3 {[%emt 0:00:00]} e6 {[%emt 0:00:14]} 3. d4 {[%emt 0:00:00]} cxd4 {[%emt 0:00:58]} 4. cxd4 {[%emt 0:00:09]} Nf6 {[%emt 0:01:06]} 5. Nc3 {[%emt 0:00:42]} d6 {[%emt 0:00:55]} 6. Bg5 {[%emt 0:00:55]} Be7 {[%emt 0:00:57]} 7. Rc1 {[%emt 0:00:52]} Nc6 {[%emt 0:00:51]} 8. d5 {[%emt 0:02:17]} Ne5 {[%emt 0:01:57]} 9. Nb5 {[%emt 0:03:53]} O-O {[%emt 0:06:19]} 10. Bxf6 Bxf6 {[%emt 0:01:51]} 11. dxe6 {[%emt 0:07:14]} Bxe6 {[%emt 0:01:12]} 12. a3 {[%emt 0:13:29]} d5 {[%emt 0:06:54]} 13. Nc7 {[%emt 0:12:50]} Rc8 {[%emt 0:03:01]} 14. Nxe6 {[%emt 0:08:27]} Rxc1 {[%emt 0:02:26]} 15. Qxc1 {[%emt 0:02:26]} fxe6 {[%emt 0:01:15]} 16. f4 {[%emt 0:01:44]} Nc6 {[%emt 0:06:33]} 17. e5 {[%emt 0:01:47]} Be7 {[%emt 0:01:36]} 18. Nf3 {[%emt 0:01:54]} Qb6 {[%emt 0:05:54]} 19. Qd2 {[%emt 0:01:52]} Bc5 {[%emt 0:04:16]} 20. g3 {[%emt 0:01:17]} Nd4 {[%emt 0:01:52]} 21. Nxd4 {[%emt 0:01:01]} Bxd4 {[%emt 0:00:28]} 22. Bh3 {[%emt 0:02:26]} Bxb2 {[%emt 0:04:24]} 23. Bxe6+ {[%emt 0:01:23]} Kh8 {[%emt 0:02:07]} 24. Ke2 {[%emt 0:04:55]} Rd8 {[%emt 0:03:57]} 25. Rb1 {[%emt 0:02:23]} Qxe6 {[%emt 0:01:13]} 26. Rxb2 {[%emt 0:00:12]} b6 {[%emt 0:01:49]} 27. Rc2 {[%emt 0:02:13]} Qd7 {[%emt 0:02:26]} 28. Qd3 {[%emt 0:00:40]} a5 {[%emt 0:03:07]} 29. Rb2 {[%emt 0:01:41]} Qc6 {[%emt 0:02:15]} 30. Qb5 {[%emt 0:00:45]} Qxb5+ {[%emt 0:04:48]} 31. Rxb5 {[%emt 0:00:16]} Rb8 {[%emt 0:00:15]} 32. Rxd5 {[%emt 0:00:05]} g6 {[%emt 0:00:57]} 33. Kd3 {[%emt 0:00:18]} b5 {[%emt 0:01:27]} 34. Kc3 {[%emt 0:00:47]} h5 {[%emt 0:01:33]} 35. Kb3 {[%emt 0:00:20]} Rb7 {[%emt 0:00:41]} 36. a4 {[%emt 0:00:18]} bxa4+ {[%emt 0:00:12]} 37. Kxa4 {[%emt 0:00:05]} Rb2 {[%emt 0:00:17]} 38. Kxa5 {[%emt 0:01:02]} Rxh2 {[%emt 0:00:36]} 39. Kb6 {[%emt 0:12:37]} Re2 {[%emt 0:01:21]} 40. Kc6 {[%emt 0:00:29]} Kg7 {[%emt 0:02:03]} 41. Kd7 {[%emt 0:00:13]} Kf7 {[%emt 0:01:09]} 42. Rd6 {[%emt 0:00:20]} Re3 {[%emt 0:02:09]} 43. Rf6+ {[%emt 0:01:16]} Kg7 {[%emt 0:01:24]} 44. Ke6 {[%emt 0:02:21]} Rxg3 {[%emt 0:01:21]} 45. Rf7+ {[%emt 0:01:49]} Kg8 {[%emt 0:00:54]} 46. Ke7 {[%emt 0:08:11]} h4 {[%emt 0:05:55]} 47. f5 {[%emt 0:00:22]} gxf5 {[%emt 0:01:26]} 48. Rxf5 {[%emt 0:00:06]} h3 {[%emt 0:01:27]} 49. Rh5 {[%emt 0:00:42]} Rg7+ {[%emt 0:00:21]} 50. Kf6 {[%emt 0:00:24]} Rh7 {[%emt 0:00:27]} 1/2-1/2

[Event "DMP-III LIGA Senior PK 2020"]
[Site "Bystre"]
[Date "2020.07.12"]
[Round "9.9"]
[White "Babiarz, Arkadiusz"]
[Black "Futyma, Dawid"]
[Result "1-0"]
[ECO "C54"]
[WhiteElo "1840"]
[BlackElo "1278"]
[Annotator "NA RC"]
[PlyCount "26"]
[EventDate "2020.07.05"]
[EventType "team-tourn"]
[EventCountry "POL"]
[SourceTitle "playchess.com"]
[Source "ChessBase"]
[SourceQuality "1"]
[TimeControl "5400+30"]

1. e4 {[%emt 0:00:00]} e5 {[%emt 0:00:00]} 2. Nf3 {[%emt 0:00:00]} Nc6 {[%emt 0:00:00]} 3. Bc4 {[%emt 0:00:00]} Bc5 {[%emt 0:00:00]} 4. c3 {[%emt 0:00:04]} Nf6 {[%emt 0:01:07]} 5. d4 {[%emt 0:00:09]} exd4 {[%emt 0:00:17]} 6. e5 {[%emt 0:00:20]} Qe7 {[%emt 0:02:22]} 7. O-O {[%emt 0:01:07]} Ng4 {[%emt 0:01:20]} 8. cxd4 {[%emt 0:00:23]} Bb4 {[%emt 0:00:57]} 9. h3 {[%emt 0:00:36]} Nh6 {[%emt 0:00:25]} 10. a3 {[%emt 0:00:20]} Ba5 {[%emt 0:00:10]} 11. b4 {[%emt 0:00:16]} Bb6 {[%emt 0:00:13]} 12. d5 {[%emt 0:00:13]} Nd8 {[%emt 0:02:14]} 13. Nc3 {[%emt 0:00:23]} Qf8 {[%emt 0:00:55]} 1-0

[Event "DMP-III LIGA Senior PK 2020"]
[Site "Bystre"]
[Date "2020.07.12"]
[Round "9.10"]
[White "Szaro, Mariusz"]
[Black "Ziemniak, Piotr"]
[Result "1/2-1/2"]
[ECO "A41"]
[WhiteElo "1559"]
[BlackElo "1791"]
[Annotator "NA RC"]
[PlyCount "25"]
[EventDate "2020.07.05"]
[EventType "team-tourn"]
[EventCountry "POL"]
[SourceTitle "playchess.com"]
[Source "ChessBase"]
[SourceQuality "1"]
[TimeControl "5400+30"]

1. d4 {[%emt 0:00:00]} d6 {[%emt 0:00:00]} 2. Bf4 {[%emt 0:00:00]} Nf6 {[%emt 0:00:32]} 3. e3 {[%emt 0:00:58]} g6 {[%emt 0:00:38]} 4. h4 {[%emt 0:00:20]} Bg7 {[%emt 0:00:58]} 5. h5 {[%emt 0:00:17]} Bg4 {[%emt 0:00:58]} 6. f3 {[%emt 0:00:12]} Bd7 {[%emt 0:01:17]} 7. hxg6 {[%emt 0:00:04]} hxg6 {[%emt 0:01:04]} 8. Rxh8+ {[%emt 0:00:14]} Bxh8 {[%emt 0:00:05]} 9. Nc3 {[%emt 0:10:05]} Nc6 {[%emt 0:02:59]} 10. Bc4 {[%emt 0:06:03]} a6 {[%emt 0:03:11]} 11. Nge2 {[%emt 0:01:59]} e6 {[%emt 0:02:05]} 12. Bg5 {[%emt 0:00:42]} d5 {[%emt 0:06:44]} 13. Bb3 {[%emt 0:06:29]} 1/2-1/2

[Event "DMP-III LIGA Senior PK 2020"]
[Site "Bystre"]
[Date "2020.07.12"]
[Round "9.11"]
[White "Wozniak, Grzegorz"]
[Black "Dziura, Wiktor"]
[Result "1/2-1/2"]
[ECO "B06"]
[WhiteElo "1608"]
[BlackElo "1353"]
[Annotator "NA"]
[PlyCount "61"]
[EventDate "2020.07.05"]
[EventType "team-tourn"]
[EventCountry "POL"]
[SourceTitle "playchess.com"]
[Source "ChessBase"]
[SourceQuality "1"]
[TimeControl "5400+30"]

1. e4 {[%emt 0:00:00]} g6 {[%emt 0:00:00]} 2. d4 {[%emt 0:00:05]} Bg7 {[%emt 0:00:00]} 3. Nc3 {[%emt 0:00:43]} c5 {[%emt 0:00:25]} 4. Nf3 {[%emt 0:02:54]} cxd4 {[%emt 0:00:11]} 5. Nxd4 {[%emt 0:00:21]} Nc6 {[%emt 0:00:13]} 6. Be3 {[%emt 0:01:17]} Nf6 {[%emt 0:00:18]} 7. Nxc6 {[%emt 0:06:42]} bxc6 {[%emt 0:00:12]} 8. e5 {[%emt 0:00:20]} Ng8 {[%emt 0:02:46]} 9. f4 {[%emt 0:00:58]} e6 {[%emt 0:00:57]} 10. Qd2 {[%emt 0:02:09]} Ne7 {[%emt 0:00:22]} 11. Bd3 {[%emt 0:00:50]} d5 {[%emt 0:02:25]} 12. O-O-O {[%emt 0:11:44]} O-O {[%emt 0:02:24]} 13. Qf2 {[%emt 0:03:54]} Qa5 {[%emt 0:02:53]} 14. Bc5 {[%emt 0:03:33]} Re8 {[%emt 0:01:29]} 15. a3 {[%emt 0:05:03]} Ba6 {[%emt 0:06:10]} 16. g4 {[%emt 0:05:47]} Bh6 {[%emt 0:05:59]} 17. g5 {[%emt 0:05:54]} Bg7 {[%emt 0:00:51]} 18. Bb4 {[%emt 0:03:35]} Qb6 {[%emt 0:00:45]} 19. Qxb6 {[%emt 0:00:52]} axb6 {[%emt 0:00:58]} 20. Bxa6 {[%emt 0:03:24]} Rxa6 {[%emt 0:00:13]} 21. Bxe7 {[%emt 0:00:04]} Rxe7 {[%emt 0:00:07]} 22. h4 {[%emt 0:01:54]} h5 {[%emt 0:02:09]} 23. Rd4 {[%emt 0:03:11]} Rb7 {[%emt 0:01:17]} 24. Ra4 {[%emt 0:00:39]} Rba7 {[%emt 0:00:28]} 25. Rxa6 {[%emt 0:00:08]} Rxa6 {[%emt 0:00:04]} 26. Rd1 {[%emt 0:00:17]} Bf8 {[%emt 0:00:12]} 27. Ne2 {[%emt 0:02:59]} Ra4 {[%emt 0:02:08]} 28. Rd4 {[%emt 0:03:26]} Rxd4 {[%emt 0:00:51]} 29. Nxd4 {[%emt 0:00:17]} Bc5 {[%emt 0:03:22]} 30. c3 {[%emt 0:00:06]} Bxd4 {[%emt 0:00:46]} 31. cxd4 1/2-1/2